[Event "FIDE World Rapid-ch Open 2018"]
[White "Artemiev, Vladislav"]
[Black "Andreikin, Dmitry"]
[Site "St. Petersburg"]
[Round "4.2"]
[Annotator "ChessBase"]
[Result "0-1"]
[Date "2018.12.26"]
[WhiteElo "2709"]
[BlackElo "2719"]
[PlyCount "74"]
[TimeControl "900+10"]

1. e4 {[%emt 0:0:0]} e5 {[%emt 0:0:0]} 2. Nf3 {[%emt 0:0:3]} Nc6 {[%emt 0:0:0]
} 3. Nc3 {[%emt 0:0:2]} Nf6 {[%emt 0:0:0]} 4. Bb5 {[%emt 0:0:0]} Bb4 {[%emt 0:0:1]} 5. 0-0 {[%emt 0:0:4]} 0-0 {[%emt 0:0:2]} 6. d3 {[%emt 0:0:2]} Bxc3 {[%emt 0:0:3]} 7. bxc3 {[%emt 0:0:2]} d6 {[%emt 0:0:0]} 8. Bg5 {[%emt 0:0:7]} Qe7 {[%emt 0:0:15]} 9. Re1 {[%emt 0:0:3]} a6 {[%emt 0:1:35]
} 10. Ba4 {[%emt 0:0:8]} Nd8 {[%emt 0:0:32]} 11. Bb3 {[%emt 0:0:0]} Ne6 {[%emt 0:0:23]} 12. Bh4 {[%emt 0:0:17]} Nf4 {[%emt 0:0:21]} 13. Nd2 {[%emt 0:0:50]} b5 {[%emt 0:1:30]} 14. Nf1 {[%emt 0:1:2]} Ng6 {[%emt 0:0:0]} 15. Bg3 {[%emt 0:0:43]} c5 {[%emt 0:0:10]} 16. Ne3 {[%emt 0:0:6]} Qc7 {[%emt 0:1:17]} 17. h4 {[%emt 0:1:42]} Be6 {[%emt 0:1:44]} 18. h5 {[%emt 0:0:3]
} Nf4 {[%emt 0:0:2]} 19. Bxf4 {[%emt 0:1:33]} exf4 {[%emt 0:0:0]} 20. Nd5 {[%emt 0:0:2]} Bxd5 {[%emt 0:1:5]} 21. Bxd5 {[%emt 0:0:2]
} Rae8 {[%emt 0:0:21]} 22. h6 {[%emt 0:0:34]} Re5 {[%emt 0:0:56]} 23. hxg7 {[%emt 0:3:43]
} Kxg7 {[%emt 0:0:2]} 24. Qd2 {[%emt 0:2:8]} Rfe8 {[%emt 0:0:0]} 25. c4 {[%emt 0:0:4]} Nh5 {[%emt 0:0:6]} 26. cxb5 {[%emt 0:1:26]} axb5 {[%emt 0:0:3]} 27. a4 {[%emt 0:0:5]} bxa4 {[%emt 0:0:50]} 28. Rxa4 {[%emt 0:0:2]
} Qe7 {[%emt 0:0:19]} 29. Rea1 {[%emt 0:0:55]} Qh4 {[%emt 0:0:0]} 30. Qd1 {[%emt 0:1:11]} Nf6 {[%emt 0:1:45]} 31. c4 {[%emt 0:0:29]} Rh5 {[%emt 0:0:44]} 32. Kf1 {[%emt 0:0:1]} Ng4 {[%emt 0:0:2]} 33. Qd2 {[%emt 0:0:13]
} Ne5 {[%emt 0:0:23]} 34. Qd1 {[%emt 0:0:15]} f3 {[%emt 0:0:0]} 35. gxf3 {[%emt 0:0:2]} Qh1+ {[%emt 0:0:2]} 36. Ke2 {[%emt 0:0:1]} Qxf3+ {[%emt 0:0:1]} 37. Kd2 {[%emt 0:0:0]} Qxd3+ {[%emt 0:0:6]} 0-1

[Event "FIDE World Rapid-ch Open 2018"]
[White "Nepomniachtchi, Ian"]
[Black "Nakamura, Hikaru"]
[Site "St. Petersburg"]
[Round "4.3"]
[Annotator "RC"]
[Result "1-0"]
[Date "2018.12.26"]
[WhiteElo "2763"]
[BlackElo "2746"]
[PlyCount "95"]
[TimeControl "900+10"]

1. c4 {[%emt 0:0:0]} Nf6 {[%emt 0:0:0]} 2. Nc3 {[%emt 0:0:0]} e6 {[%emt 0:0:0]
} 3. Nf3 {[%emt 0:0:2]} d5 {[%emt 0:0:0]} 4. e3 {[%emt 0:0:0]} Be7 {[%emt 0:0:14]} 5. b3 {[%emt 0:0:4]} c5 {[%emt 0:0:13]} 6. cxd5 {[%emt 0:0:5]
} Nxd5 {[%emt 0:0:1]} 7. Bb2 {[%emt 0:0:2]} Nxc3 {[%emt 0:0:0]} 8. Bxc3 {[%emt 0:0:11]} 0-0 {[%emt 0:0:10]} 9. h4 {[%emt 0:0:8]} Bf6 {[%emt 0:0:20]
} 10. Qc2 {[%emt 0:0:13]} Bxc3 {[%emt 0:0:24]} 11. dxc3 {[%emt 0:0:2]
} Nc6 {[%emt 0:0:47]} 12. Bd3 {[%emt 0:0:2]} f5 {[%emt 0:0:0]} 13. 0-0-0 {[%emt 0:0:4]} Qa5 {[%emt 0:1:17]} 14. e4 {[%emt 0:0:8]} b5 {[%emt 0:0:6]} 15. exf5 {[%emt 0:0:15]} exf5 {[%emt 0:0:2]} 16. Rhe1 {[%emt 0:0:2]
} Rb8 {[%emt 0:3:8]} 17. Ne5 {[%emt 0:0:9]} Nxe5 {[%emt 0:0:0]} 18. Rxe5 {[%emt 0:0:2]} Qc7 {[%emt 0:0:1]} 19. Qe2 {[%emt 0:0:39]} a6 {[%emt 0:2:10]} 20. Bc2 {[%emt 0:1:37]} c4 {[%emt 0:0:31]} 21. Kb2 {[%emt 0:0:0]} Qc6 {[%emt 0:0:48]} 22. f4 {[%emt 0:1:6]} Rb6 {[%emt 0:0:29]} 23. b4 {[%emt 0:0:51]} Qf6 {[%emt 0:0:3]} 24. g3 {[%emt 0:1:10]} Re6 {[%emt 0:0:0]} 25. Rdd5 {[%emt 0:0:25]} Rfe8 {[%emt 0:0:14]} 26. Rxe6 {[%emt 0:0:0]} Rxe6 {[%emt 0:0:2]} 27. Qd2 {[%emt 0:0:8]} Re8 {[%emt 0:0:11]} 28. a4 {[%emt 0:0:1]} Be6 {[%emt 0:0:38]} 29. Re5 {[%emt 0:0:7]} Rd8 {[%emt 0:0:0]} 30. Qe3 {[%emt 0:0:6]} Bd7 {[%emt 0:0:1]} 31. a5 {[%emt 0:0:41]} g6 {[%emt 0:0:15]
} 32. h5 {[%emt 0:0:6]} Qd6 {[%emt 0:0:15]} 33. hxg6 {[%emt 0:0:0]} hxg6 {[%emt 0:0:1]} 34. g4 {[%emt 0:0:6]} Rf8 {[%emt 0:0:7]} 35. gxf5 {[%emt 0:1:0]} gxf5 {[%emt 0:2:16]} 36. Qg3+ {[%emt 0:0:10]} Kf7 {[%emt 0:0:3]
} 37. Qf3 {[%emt 0:1:23]} Rh8 {[%emt 0:0:18]} 38. Rd5 {[%emt 0:0:0]} Qe7 {[%emt 0:0:4]} 39. Qf2 {[%emt 0:0:43]} Be6 {[%emt 0:0:9]} 40. Re5 {[%emt 0:0:2]} Qd7 {[%emt 0:0:1]} 41. Re1 {[%emt 0:0:36]} Rh6 {[%emt 0:0:30]
} 42. Rd1 {[%emt 0:0:27]} Qb7 {[%emt 0:0:4]} 43. Rd2 {[%emt 0:0:0]} Rh3 {[%emt 0:0:13]} 44. Qc5 {[%emt 0:0:35]} Qf3 {[%emt 0:1:49]} 45. Qc7+ {[%emt 0:0:1]} Kg6 {[%emt 0:1:22]} 46. Qe5 {[%emt 0:0:2]} Qe3 {[%emt 0:0:1]
} 47. Rg2+ {[%emt 0:0:3]} Kf7 {[%emt 0:0:8]} 48. Rg7+ {[%emt 0:0:3]
} 1-0

[Event "FIDE World Rapid-ch Open 2018"]
[White "Wang, Hao"]
[Black "Zubov, Alexander"]
[Site "St. Petersburg"]
[Round "4.5"]
[Annotator "ChessBase"]
[Result "1/2-1/2"]
[Date "2018.12.26"]
[WhiteElo "2730"]
[BlackElo "2597"]
[PlyCount "58"]
[TimeControl "900+10"]

1. e4 {[%emt 0:0:0]} Nc6 {[%emt 0:0:2]} 2. d4 {[%emt 0:1:9]} e5 {[%emt 0:0:0]} 3. d5 {[%emt 0:0:41]} Nce7 {[%emt 0:0:6]} 4. Be3 {[%emt 0:0:4]} d6 {[%emt 0:0:43]} 5. c4 {[%emt 0:0:10]} f5 {[%emt 0:1:44]} 6. Nc3 {[%emt 0:0:0]} Nf6 {[%emt 0:0:32]} 7. Bd3 {[%emt 0:2:1]} g6 {[%emt 0:1:24]} 8. f3 {[%emt 0:1:11]
} c5 {[%emt 0:1:1]} 9. h3 {[%emt 0:0:27]} Bg7 {[%emt 0:1:52]} 10. Nge2 {[%emt 0:0:18]} 0-0 {[%emt 0:0:14]} 11. g4 {[%emt 0:0:19]} Bd7 {[%emt 0:1:2]
} 12. Qc2 {[%emt 0:0:52]} f4 {[%emt 0:1:5]} 13. Bf2 {[%emt 0:0:0]} g5 {[%emt 0:0:12]} 14. a3 {[%emt 0:0:27]} b6 {[%emt 0:1:1]} 15. h4 {[%emt 0:1:6]} h6 {[%emt 0:0:2]} 16. 0-0-0 {[%emt 0:0:3]} Ng6 {[%emt 0:0:0]} 17. h5 {[%emt 0:0:44]} Nh8 {[%emt 0:0:25]} 18. Kb1 {[%emt 0:0:26]} Nf7 {[%emt 0:0:9]} 19. Nc1 {[%emt 0:0:7]} a6 {[%emt 0:0:21]} 20. b4 {[%emt 0:1:34]
} Qc7 {[%emt 0:0:12]} 21. Nb3 {[%emt 0:0:6]} Rfb8 {[%emt 0:0:0]} 22. Rc1 {[%emt 0:1:10]} Bf8 {[%emt 0:0:29]} 23. Qe2 {[%emt 0:0:38]} Nd8 {[%emt 0:0:57]} 24. Kc2 {[%emt 0:0:37]} cxb4 {[%emt 0:1:35]} 25. axb4 {[%emt 0:0:1]
} a5 {[%emt 0:0:1]} 26. b5 {[%emt 0:1:39]} Nb7 {[%emt 0:0:6]
} 27. Na4 {[%emt 0:0:5]} Nc5 {[%emt 0:0:1]} 28. Nbxc5 {[%emt 0:0:29]} dxc5 {[%emt 0:0:3]} 29. Be1 {[%emt 0:0:3]} Bd6 {[%emt 0:0:5]} 1/2-1/2

[Event "FIDE World Rapid-ch Open 2018"]
[White "Matlakov, Maxim"]
[Black "Karjakin, Sergey"]
[Site "St. Petersburg"]
[Round "4.6"]
[Annotator "RC"]
[Result "1/2-1/2"]
[Date "2018.12.26"]
[WhiteElo "2700"]
[BlackElo "2753"]
[PlyCount "173"]
[TimeControl "900+10"]

1. d4 {[%emt 0:0:0]} Nf6 {[%emt 0:0:0]} 2. c4 {[%emt 0:0:0]} e6 {[%emt 0:0:0]} 3. g3 {[%emt 0:0:0]} Bb4+ {[%emt 0:0:0]} 4. Nd2 {[%emt 0:0:0]} c5 {[%emt 0:0:7]} 5. dxc5 {[%emt 0:0:2]} 0-0 {[%emt 0:0:15]} 6. Bg2 {[%emt 0:0:0]} Bxc5 {[%emt 0:0:7]} 7. Ngf3 {[%emt 0:0:7]} b6 {[%emt 0:1:4]} 8. 0-0 {[%emt 0:1:48]} Bb7 {[%emt 0:0:1]} 9. b3 {[%emt 0:0:12]} Be7 {[%emt 0:0:0]} 10. Bb2 {[%emt 0:0:4]} d6 {[%emt 0:0:8]} 11. Nd4 {[%emt 0:1:45]} Qc8 {[%emt 0:2:54]} 12. e4 {[%emt 0:0:32]} Nc6 {[%emt 0:0:5]} 13. Qe2 {[%emt 0:0:13]
} Nd7 {[%emt 0:2:18]} 14. Rfd1 {[%emt 0:0:57]} Re8 {[%emt 0:0:0]} 15. Rac1 {[%emt 0:0:6]} Nxd4 {[%emt 0:0:35]} 16. Bxd4 {[%emt 0:0:2]} Bc6 {[%emt 0:0:1]} 17. Nb1 {[%emt 0:1:5]} Qb7 {[%emt 0:1:6]} 18. Nc3 {[%emt 0:0:7]
} Rac8 {[%emt 0:1:43]} 19. Qb2 {[%emt 0:5:14]} Qa8 {[%emt 0:0:0]} 20. Re1 {[%emt 0:1:2]} Bf8 {[%emt 0:1:0]} 21. Rcd1 {[%emt 0:0:4]} a6 {[%emt 0:0:6]} 22. a4 {[%emt 0:0:7]} Nc5 {[%emt 0:0:29]} 23. Re2 {[%emt 0:0:0]} g6 {[%emt 0:0:22]} 24. Qb1 {[%emt 0:0:20]} Qb8 {[%emt 0:0:33]} 25. Bf6 {[%emt 0:0:48]} Nd7 {[%emt 0:0:7]} 26. Bd4 {[%emt 0:0:1]} Nc5 {[%emt 0:0:1]
} 27. Bf6 {[%emt 0:0:3]} b5 {[%emt 0:0:38]} 28. cxb5 {[%emt 0:0:0]} axb5 {[%emt 0:0:1]} 29. axb5 {[%emt 0:0:3]} Bxb5 {[%emt 0:0:1]} 30. Nxb5 {[%emt 0:0:36]} Qxb5 {[%emt 0:0:1]} 31. Re3 {[%emt 0:0:4]} Qb4 {[%emt 0:0:35]
} 32. Ba1 {[%emt 0:1:40]} Rb8 {[%emt 0:0:36]} 33. Rd4 {[%emt 0:0:0]} Qb6 {[%emt 0:0:6]} 34. b4 {[%emt 0:0:7]} Bg7 {[%emt 0:0:20]} 35. Rd1 {[%emt 0:1:0]} Bxa1 {[%emt 0:0:23]} 36. Qxa1 {[%emt 0:0:1]} Qxb4 {[%emt 0:0:1]
} 37. h4 {[%emt 0:0:5]} Red8 {[%emt 0:0:8]} 38. h5 {[%emt 0:0:0]} Qb2 {[%emt 0:0:6]} 39. Qa7 {[%emt 0:0:7]} Rd7 {[%emt 0:0:22]} 40. Qa5 {[%emt 0:0:2]} gxh5 {[%emt 0:0:20]} 41. Rc3 {[%emt 0:0:35]} Qb5 {[%emt 0:0:15]
} 42. Qa2 {[%emt 0:0:10]} Qb4 {[%emt 0:0:7]} 43. Rc4 {[%emt 0:0:0]} Qb3 {[%emt 0:0:4]} 44. Qe2 {[%emt 0:0:5]} Rdb7 {[%emt 0:0:11]} 45. Rxd6 {[%emt 0:0:4]} Nd7 {[%emt 0:0:6]} 46. Rcd4 {[%emt 0:0:9]} Nf6 {[%emt 0:0:5]
} 47. e5 {[%emt 0:0:10]} Nd5 {[%emt 0:0:23]} 48. Bxd5 {[%emt 0:0:0]} exd5 {[%emt 0:0:1]} 49. Qxh5 {[%emt 0:0:15]} Rb4 {[%emt 0:0:3]} 50. R4xd5 {[%emt 0:0:9]} Rf8 {[%emt 0:0:14]} 51. Rd8 {[%emt 0:0:19]} Rb8 {[%emt 0:0:1]
} 52. Qg5+ {[%emt 0:0:1]} Kh8 {[%emt 0:0:1]} 53. Qf6+ {[%emt 0:0:2]
} Kg8 {[%emt 0:0:1]} 54. R8d6 {[%emt 0:0:26]} Qb1+ {[%emt 0:0:0]} 55. Kh2 {[%emt 0:0:2]} Qg6 {[%emt 0:0:21]} 56. Qf4 {[%emt 0:0:2]} Qh5+ {[%emt 0:0:23]} 57. Kg2 {[%emt 0:0:4]} Rb1 {[%emt 0:0:5]} 58. Rh6 {[%emt 0:0:5]
} Qe2 {[%emt 0:0:1]} 59. Rh1 {[%emt 0:0:37]} Rxh1 {[%emt 0:0:0]} 60. Kxh1 {[%emt 0:0:1]} Qh5+ {[%emt 0:0:6]} 61. Kg2 {[%emt 0:0:4]} Re8 {[%emt 0:0:8]} 62. Qd4 {[%emt 0:0:30]} Re6 {[%emt 0:0:7]} 63. Rc5 {[%emt 0:0:6]
} Kg7 {[%emt 0:0:13]} 64. Kg1 {[%emt 0:0:21]} Qf5 {[%emt 0:0:0]} 65. Rd5 {[%emt 0:0:5]} Qh5 {[%emt 0:0:9]} 66. Qc3 {[%emt 0:0:5]} Qe2 {[%emt 0:0:16]} 67. Qd4 {[%emt 0:0:13]} Qh5 {[%emt 0:0:14]} 68. Kg2 {[%emt 0:0:2]
} Qf5 {[%emt 0:0:5]} 69. Qf4 {[%emt 0:0:5]} Qh5 {[%emt 0:0:0]} 70. g4 {[%emt 0:0:5]} Qh4 {[%emt 0:0:8]} 71. Rd7 {[%emt 0:0:10]} Re7 {[%emt 0:0:8]} 72. Rd6 {[%emt 0:0:3]} Re6 {[%emt 0:0:9]} 73. Qf5 {[%emt 0:0:30]
} Rg6 {[%emt 0:0:10]} 74. f3 {[%emt 0:0:15]} Qe1 {[%emt 0:0:0]} 75. Rxg6+ {[%emt 0:0:15]} hxg6 {[%emt 0:0:2]} 76. Qf6+ {[%emt 0:0:0]} Kh6 {[%emt 0:0:17]} 77. Qh8+ {[%emt 0:0:5]} Kg5 {[%emt 0:0:1]} 78. Qf6+ {[%emt 0:0:1]
} Kh6 {[%emt 0:0:1]} 79. Qh8+ {[%emt 0:0:10]} Kg5 {[%emt 0:0:0]} 80. Qd8+ {[%emt 0:0:1]} Kh6 {[%emt 0:0:5]} 81. Qd4 {[%emt 0:0:4]} Qe2+ {[%emt 0:0:8]} 82. Kg3 {[%emt 0:0:2]} Qe1+ {[%emt 0:0:3]} 83. Kf4 {[%emt 0:0:24]
} Kh7 {[%emt 0:0:21]} 84. Kg5 {[%emt 0:0:13]} Kg7 {[%emt 0:0:0]} 85. e6+ {[%emt 0:0:17]} Kh7 {[%emt 0:0:1]} 86. exf7 {[%emt 0:0:21]} Qe5+ {[%emt 0:0:5]} 87. Qxe5 {[%emt 0:0:4]} 1/2-1/2

[Event "FIDE World Rapid-ch Open 2018"]
[White "Bocharov, Dmitry"]
[Black "Harikrishna, Pentala"]
[Site "St. Petersburg"]
[Round "4.7"]
[Annotator "ChessBase"]
[Result "1/2-1/2"]
[Date "2018.12.26"]
[WhiteElo "2533"]
[BlackElo "2725"]
[PlyCount "52"]
[TimeControl "900+10"]

1. Nf3 {[%emt 0:0:0]} d5 {[%emt 0:0:0]} 2. e3 {[%emt 0:0:1]} Nf6 {[%emt 0:0:2]
} 3. c4 {[%emt 0:0:4]} e6 {[%emt 0:0:9]} 4. b3 {[%emt 0:0:0]} b6 {[%emt 0:0:14]} 5. Bb2 {[%emt 0:1:4]} Bd6 {[%emt 0:0:49]} 6. Nc3 {[%emt 0:2:23]
} a6 {[%emt 0:1:37]} 7. d4 {[%emt 0:0:8]} 0-0 {[%emt 0:0:9]} 8. Bd3 {[%emt 0:0:2]} Bb7 {[%emt 0:0:10]} 9. 0-0 {[%emt 0:0:14]} Nbd7 {[%emt 0:0:5]
} 10. Qc2 {[%emt 0:2:3]} Qe7 {[%emt 0:2:22]} 11. e4 {[%emt 0:0:0]} dxe4 {[%emt 0:0:38]} 12. Nxe4 {[%emt 0:0:2]} Nxe4 {[%emt 0:0:48]} 13. Bxe4 {[%emt 0:0:2]} Bxe4 {[%emt 0:0:3]} 14. Qxe4 {[%emt 0:0:2]} Nf6 {[%emt 0:0:37]
} 15. Qe2 {[%emt 0:0:2]} Ba3 {[%emt 0:0:43]} 16. Bxa3 {[%emt 0:0:10]
} Qxa3 {[%emt 0:0:2]} 17. Rad1 {[%emt 0:0:4]} Rad8 {[%emt 0:0:0]} 18. Rd3 {[%emt 0:0:10]} Rd6 {[%emt 0:1:40]} 19. Rfd1 {[%emt 0:2:38]} Rfd8 {[%emt 0:0:48]} 20. g3 {[%emt 0:0:14]} h6 {[%emt 0:0:9]} 21. Kg2 {[%emt 0:0:38]
} Qa5 {[%emt 0:0:25]} 22. Ne5 {[%emt 0:0:34]} Nd7 {[%emt 0:0:0]} 23. Ng4 {[%emt 0:2:36]} Qf5 {[%emt 0:1:8]} 24. R3d2 {[%emt 0:0:37]} Nf6 {[%emt 0:0:38]} 25. Nxf6+ {[%emt 0:0:23]} Qxf6 {[%emt 0:0:2]} 26. Qf3 {[%emt 0:0:4]
} Qxf3+ {[%emt 0:0:46]} 1/2-1/2

[Event "FIDE World Rapid-ch Open 2018"]
[White "Yu, Yangyi"]
[Black "Duda, Jan-Krzysztof"]
[Site "St. Petersburg"]
[Round "4.8"]
[Annotator "RC"]
[Result "1-0"]
[Date "2018.12.26"]
[WhiteElo "2764"]
[BlackElo "2738"]
[PlyCount "105"]
[TimeControl "900+10"]

1. e4 {[%emt 0:0:0]} e5 {[%emt 0:0:0]} 2. Nf3 {[%emt 0:0:0]} Nf6 {[%emt 0:0:2]
} 3. Nxe5 {[%emt 0:0:0]} d6 {[%emt 0:0:1]} 4. Nf3 {[%emt 0:0:0]} Nxe4 {[%emt 0:0:2]} 5. d4 {[%emt 0:0:2]} d5 {[%emt 0:0:2]} 6. Bd3 {[%emt 0:0:12]} Bf5 {[%emt 0:0:2]} 7. 0-0 {[%emt 0:0:6]} Be7 {[%emt 0:0:0]} 8. Ne5 {[%emt 0:0:7]} Nd7 {[%emt 0:0:15]} 9. Nc3 {[%emt 0:0:4]} Nxc3 {[%emt 0:2:11]} 10. bxc3 Bxd3 {[%emt 0:0:6]} 11. cxd3 {[%emt 0:0:4]} 0-0 {[%emt 0:0:17]
} 12. Rb1 {[%emt 0:0:3]} Nxe5 {[%emt 0:0:20]} 13. dxe5 {[%emt 0:0:2]
} b6 {[%emt 0:0:1]} 14. d4 {[%emt 0:1:35]} Qd7 {[%emt 0:0:6]
} 15. Be3 {[%emt 0:1:11]} Rac8 {[%emt 0:0:54]} 16. f4 {[%emt 0:0:42]} f5 {[%emt 0:1:6]
} 17. Qb3 {[%emt 0:0:59]} Qe6 {[%emt 0:0:54]} 18. Rfd1 {[%emt 0:1:4]
} c6 {[%emt 0:0:15]} 19. a4 {[%emt 0:0:11]} Rc7 {[%emt 0:0:33]
} 20. Rd3 {[%emt 0:0:28]} Rfc8 {[%emt 0:0:27]} 21. Rbd1 {[%emt 0:0:10]} Kf7 {[%emt 0:0:32]} 22. Kh1 {[%emt 0:0:19]} Rd7 {[%emt 0:0:53]} 23. h3 {[%emt 0:0:0]} Rcd8 {[%emt 0:0:26]} 24. Qa2 {[%emt 0:0:37]} g6 {[%emt 0:0:52]} 25. Bc1 {[%emt 0:0:23]} Rc8 {[%emt 0:2:7]} 26. Ba3 {[%emt 0:0:19]} Bxa3 {[%emt 0:0:14]
} 27. Qxa3 {[%emt 0:0:1]} Kg7 {[%emt 0:0:3]} 28. Qa2 {[%emt 0:0:9]
} Kf7 {[%emt 0:0:2]} 29. Qf2 {[%emt 0:0:18]} Kg7 {[%emt 0:0:0]} 30. Qf3 {[%emt 0:0:20]} Kf7 {[%emt 0:1:9]} 31. Kh2 {[%emt 0:0:4]} Ke8 {[%emt 0:0:9]} 32. R3d2 {[%emt 0:0:13]} Kd8 {[%emt 0:0:23]} 33. Qe2 {[%emt 0:2:40]
} Ke7 {[%emt 0:1:35]} 34. Rc2 {[%emt 0:0:25]} Kf7 {[%emt 0:0:0]} 35. Rdc1 {[%emt 0:0:27]} Rcc7 {[%emt 0:2:44]} 36. c4 {[%emt 0:0:46]} dxc4 {[%emt 0:0:2]} 37. Rxc4 {[%emt 0:0:2]} Rd5 {[%emt 0:0:16]} 38. Qc2 {[%emt 0:0:17]
} Ke8 {[%emt 0:0:23]} 39. Qb2 {[%emt 0:1:4]} Kd7 {[%emt 0:0:0]} 40. Qc3 {[%emt 0:0:31]} Kd8 {[%emt 0:0:22]} 41. Rc2 {[%emt 0:0:15]} Kd7 {[%emt 0:0:14]} 42. Kg3 {[%emt 0:0:13]} Rc8 {[%emt 0:0:41]} 43. Qa3 {[%emt 0:0:10]
} Ra5 {[%emt 0:0:26]} 44. Kh2 {[%emt 0:0:7]} Rd5 {[%emt 0:0:0]} 45. Qb4 {[%emt 0:0:55]} Qe7 {[%emt 0:0:10]} 46. Qe1 {[%emt 0:0:35]} Rc7 {[%emt 0:0:7]} 47. R2c3 {[%emt 0:1:7]} Qe6 {[%emt 0:0:7]} 48. Qc1 {[%emt 0:0:7]
} Kd8 {[%emt 0:0:9]} 49. Rxc6 {[%emt 0:0:4]} Rxc6 {[%emt 0:0:0]} 50. Rxc6 {[%emt 0:0:1]} Qd7 {[%emt 0:0:17]} 51. e6 {[%emt 0:0:20]} Qb7 {[%emt 0:0:9]} 52. Qc4 {[%emt 0:0:26]} Rc5 {[%emt 0:0:3]} 53. Rd6+ {[%emt 0:0:7]
} 1-0

[Event "FIDE World Rapid-ch Open 2018"]
[White "Petrosian, Tigran L."]
[Black "Kamsky, Gata"]
[Site "St. Petersburg"]
[Round "4.9"]
[Annotator "ChessBase"]
[Result "0-1"]
[Date "2018.12.26"]
[WhiteElo "2598"]
[BlackElo "2666"]
[PlyCount "90"]
[TimeControl "900+10"]

1. Nf3 {[%emt 0:0:0]} Nf6 {[%emt 0:0:0]} 2. g3 {[%emt 0:0:0]} g6 {[%emt 0:0:0]
} 3. Bg2 {[%emt 0:0:0]} Bg7 {[%emt 0:0:0]} 4. 0-0 {[%emt 0:0:0]} 0-0 {[%emt 0:0:1]} 5. d3 {[%emt 0:0:21]} d5 {[%emt 0:0:49]} 6. Nbd2 {[%emt 0:0:2]} b6 {[%emt 0:0:32]} 7. e4 {[%emt 0:0:24]} dxe4 {[%emt 0:0:0]} 8. Ng5 {[%emt 0:0:22]} Bb7 {[%emt 0:0:6]} 9. Ngxe4 {[%emt 0:0:2]} Nxe4 {[%emt 0:0:18]} 10. Nxe4 {[%emt 0:0:1]} Nc6 {[%emt 0:3:22]} 11. c3 {[%emt 0:0:57]
} Qd7 {[%emt 0:0:36]} 12. d4 {[%emt 0:0:49]} Rad8 {[%emt 0:0:0]} 13. f4 {[%emt 0:0:37]} e6 {[%emt 0:0:32]} 14. Be3 {[%emt 0:0:23]} Ne7 {[%emt 0:0:19]
} 15. Bf2 {[%emt 0:0:16]} Qc8 {[%emt 0:0:23]} 16. Qf3 {[%emt 0:0:0]} Kh8 {[%emt 0:0:46]} 17. Rfe1 {[%emt 0:9:49]} Qa8 {[%emt 0:0:9]} 18. Qg4 {[%emt 0:0:15]} f5 {[%emt 0:0:29]} 19. Qh4 {[%emt 0:1:23]} fxe4 {[%emt 0:0:3]
} 20. Qxe7 {[%emt 0:0:2]} e3 {[%emt 0:0:2]} 21. Bxb7 {[%emt 0:0:6]
} exf2+ {[%emt 0:0:3]} 22. Kxf2 {[%emt 0:0:0]} Qxb7 {[%emt 0:0:0]} 23. Rxe6 {[%emt 0:0:5]} Qd5 {[%emt 0:0:51]} 24. Rae1 {[%emt 0:0:26]
} Qxa2 {[%emt 0:1:55]} 25. R1e2 {[%emt 0:0:4]} Qc4 {[%emt 0:0:52]} 26. h4 {[%emt 0:0:4]
} c5 {[%emt 0:0:36]} 27. dxc5 {[%emt 0:0:2]} Qxc5+ {[%emt 0:0:0]} 28. Qxc5 {[%emt 0:0:2]} bxc5 {[%emt 0:0:2]} 29. Re7 {[%emt 0:0:15]
} a5 {[%emt 0:0:19]} 30. Kf3 {[%emt 0:0:45]} a4 {[%emt 0:0:11]} 31. Kg4 {[%emt 0:0:26]
} Bf6 {[%emt 0:0:24]} 32. R7e4 {[%emt 0:0:15]} a3 {[%emt 0:0:0]} 33. bxa3 {[%emt 0:0:1]} Bxc3 {[%emt 0:0:13]} 34. Re7 {[%emt 0:0:8]} Rc8 {[%emt 0:0:12]} 35. h5 {[%emt 0:0:6]} Bf6 {[%emt 0:0:8]} 36. Rb7 {[%emt 0:0:2]
} gxh5+ {[%emt 0:0:27]} 37. Kxh5 {[%emt 0:0:1]} c4 {[%emt 0:0:0]} 38. g4 {[%emt 0:0:8]} c3 {[%emt 0:0:2]} 39. Rc2 {[%emt 0:0:1]} Rfd8 {[%emt 0:0:45]} 40. g5 {[%emt 0:0:5]} Rd2 {[%emt 0:0:8]} 41. Rc1 {[%emt 0:0:1]
} Bd4 {[%emt 0:0:23]} 42. f5 {[%emt 0:0:35]} c2 {[%emt 0:0:18]
} 43. f6 {[%emt 0:0:0]} Be3 {[%emt 0:0:11]} 44. Re1 {[%emt 0:0:49]} c1=Q {[%emt 0:0:25]
} 45. Rxc1 {[%emt 0:0:4]} Rh2+ {[%emt 0:0:2]} 0-1

[Event "FIDE World Rapid-ch Open 2018"]
[White "Svidler, Peter"]
[Black "Pantsulaia, Levan"]
[Site "St. Petersburg"]
[Round "4.10"]
[Annotator "ChessBase"]
[Result "1-0"]
[Date "2018.12.26"]
[WhiteElo "2737"]
[BlackElo "2597"]
[PlyCount "125"]
[TimeControl "900+10"]

1. Nf3 {[%emt 0:0:0]} Nf6 {[%emt 0:0:0]} 2. c4 {[%emt 0:0:0]} c5 {[%emt 0:0:0]
} 3. g3 {[%emt 0:0:22]} b6 {[%emt 0:0:0]} 4. Bg2 {[%emt 0:0:0]} Bb7 {[%emt 0:0:0]} 5. 0-0 {[%emt 0:0:3]} e6 {[%emt 0:0:8]} 6. Nc3 {[%emt 0:0:28]
} d6 {[%emt 0:0:2]} 7. Re1 {[%emt 0:0:14]} Nbd7 {[%emt 0:0:0]} 8. e4 {[%emt 0:0:20]} Ne5 {[%emt 0:0:18]} 9. d4 {[%emt 0:0:36]} Nxf3+ {[%emt 0:0:2]
} 10. Bxf3 {[%emt 0:0:1]} cxd4 {[%emt 0:0:3]} 11. Nb5 {[%emt 0:0:28]
} Be7 {[%emt 0:0:57]} 12. Bg2 {[%emt 0:1:28]} a6 {[%emt 0:0:0]} 13. Nxd4 {[%emt 0:0:44]} Qc7 {[%emt 0:0:19]} 14. b3 {[%emt 0:0:45]} 0-0 {[%emt 0:0:4]} 15. Ba3 {[%emt 0:0:22]} Rac8 {[%emt 0:0:49]} 16. Qe2 {[%emt 0:0:28]
} Rfd8 {[%emt 0:0:18]} 17. Rad1 {[%emt 0:0:7]} Bf8 {[%emt 0:0:0]} 18. Bb2 {[%emt 0:0:28]} Qb8 {[%emt 0:0:8]} 19. h3 {[%emt 0:1:34]} Qa8 {[%emt 0:0:4]} 20. Nc2 {[%emt 0:0:56]} Nd7 {[%emt 0:0:9]} 21. Kh2 {[%emt 0:0:52]
} Nc5 {[%emt 0:0:15]} 22. Nb4 {[%emt 0:0:4]} Nd7 {[%emt 0:0:0]} 23. Nd3 {[%emt 0:0:6]} b5 {[%emt 0:0:2]} 24. cxb5 {[%emt 0:0:19]} axb5 {[%emt 0:0:1]} 25. Ra1 {[%emt 0:1:12]} d5 {[%emt 0:0:55]} 26. exd5 {[%emt 0:0:6]
} Bxd5 {[%emt 0:0:1]} 27. Bxd5 {[%emt 0:0:5]} Qxd5 {[%emt 0:0:0]} 28. Nf4 {[%emt 0:0:17]} Qf5 {[%emt 0:0:7]} 29. Rec1 {[%emt 0:0:35]} Nc5 {[%emt 0:0:35]} 30. Kg2 {[%emt 0:0:31]} Ne4 {[%emt 0:0:42]} 31. Rxc8 {[%emt 0:0:31]
} Rxc8 {[%emt 0:0:1]} 32. a4 {[%emt 0:0:36]} bxa4 {[%emt 0:0:0]} 33. bxa4 {[%emt 0:0:39]} Nxf2 {[%emt 0:0:53]} 34. Rc1 {[%emt 0:0:35]} Rxc1 {[%emt 0:0:20]} 35. Bxc1 {[%emt 0:0:1]} Ne4 {[%emt 0:0:13]} 36. g4 {[%emt 0:0:55]
} Qc5 {[%emt 0:0:26]} 37. Qxe4 {[%emt 0:0:31]} Qxc1 {[%emt 0:0:0]} 38. Nd3 {[%emt 0:0:2]} Qd2+ {[%emt 0:0:8]} 39. Kf3 {[%emt 0:0:1]} Qh2 {[%emt 0:0:21]} 40. Nf2 {[%emt 0:0:19]} h5 {[%emt 0:1:5]} 41. Qf4 {[%emt 0:0:52]
} hxg4+ {[%emt 0:1:22]} 42. hxg4 {[%emt 0:0:2]} Qg1 {[%emt 0:0:0]} 43. Qc7 {[%emt 0:0:19]} Qa1 {[%emt 0:0:10]} 44. a5 {[%emt 0:0:2]} Qa3+ {[%emt 0:1:4]} 45. Kg2 {[%emt 0:0:2]} Qa4 {[%emt 0:0:55]} 46. Qb6 {[%emt 0:0:35]
} Qc4 {[%emt 0:0:47]} 47. a6 {[%emt 0:0:9]} Bc5 {[%emt 0:0:0]} 48. Qd8+ {[%emt 0:0:9]} Kh7 {[%emt 0:0:10]} 49. Qh4+ {[%emt 0:0:32]} Kg8 {[%emt 0:0:34]} 50. Qd8+ {[%emt 0:0:1]} Kh7 {[%emt 0:0:1]} 51. Qd3+ {[%emt 0:1:16]
} Qxd3 {[%emt 0:0:2]} 52. Nxd3 {[%emt 0:0:1]} Bb6 {[%emt 0:0:0]} 53. Ne5 {[%emt 0:0:2]} f6 {[%emt 0:0:7]} 54. Nd7 {[%emt 0:0:16]} Ba7 {[%emt 0:0:6]} 55. Nf8+ {[%emt 0:0:1]} Kh6 {[%emt 0:0:25]} 56. Nxe6 {[%emt 0:0:2]
} Kg6 {[%emt 0:0:25]} 57. Kf3 {[%emt 0:0:17]} f5 {[%emt 0:0:0]} 58. g5 {[%emt 0:0:22]} Kh5 {[%emt 0:0:24]} 59. Kf4 {[%emt 0:0:10]} g6 {[%emt 0:0:1]
} 60. Ng7+ {[%emt 0:0:4]} Kh4 {[%emt 0:0:2]} 61. Nxf5+ {[%emt 0:0:2]
} Kh3 {[%emt 0:0:8]} 62. Ne7 {[%emt 0:0:27]} Bb8+ {[%emt 0:0:0]} 63. Ke4 1-0